{"text_format":"1","workbook":"xlsx","n_sheets":1,"sheets":["Filter Profile"],"not_rendered":{"charts":0,"images":0,"macros":0,"external_links":0,"defined_names":2,"comments":0,"pivot_tables":0},"unopened":[],"bounds":{"document_bytes":16777216,"sheet_cells":100000,"rows_first":2000,"rows_last":500,"rows_between":2000,"halvings":0,"cell_chars":16384,"cell_head_chars":4096},"cells_cut":0,"cells_raw":0,"read":"whole","date_system":"1900"}

{"sheet":"Filter Profile","index":0,"n_rows":72,"n_cols":68,"rows_kept":72,"cut":false,"hidden":false,"merged":[[14,43,14,53],[15,42,15,53],[16,42,16,53],[69,43,69,45],[69,47,69,49],[69,51,69,53],[41,47,41,48],[22,42,22,53],[23,42,23,53],[24,42,24,53],[17,42,17,53],[18,42,18,53],[19,42,19,53],[20,42,20,53],[21,42,21,53],[25,42,25,53],[26,42,26,53],[27,42,27,53],[28,42,28,53],[29,42,29,53],[30,42,30,53],[31,42,31,53],[32,42,32,53],[33,42,33,53],[6,43,6,46],[6,48,6,53],[8,43,8,46],[8,48,8,51],[69,31,69,33],[69,35,69,37],[69,39,69,41],[6,31,6,34],[6,36,6,41],[8,31,8,34],[8,36,8,39],[41,35,41,36],[32,30,32,41],[33,30,33,41],[22,30,22,41],[23,30,23,41],[24,30,24,41],[25,30,25,41],[26,30,26,41],[27,30,27,41],[28,30,28,41],[29,30,29,41],[30,30,30,41],[31,30,31,41],[43,5,43,6],[43,10,43,11],[43,15,43,16],[41,5,41,6],[41,10,41,11],[41,15,41,16],[15,10,15,11],[15,15,15,16],[42,5,42,6],[42,10,42,11],[42,15,42,16],[6,1,6,5],[8,1,8,5],[6,9,6,17],[8,9,8,12],[8,15,8,16],[14,15,14,16],[14,10,14,11],[11,15,11,16],[13,15,13,16],[12,5,12,6],[13,5,13,6],[12,10,12,11],[13,10,13,11],[12,15,12,16],[11,5,11,6],[14,5,14,6],[15,5,15,6],[11,10,11,11],[40,5,40,6],[40,10,40,11],[40,15,40,16],[36,3,36,6],[36,8,36,11],[36,13,36,16],[41,23,41,24],[14,19,14,29],[15,18,15,29],[16,18,16,29],[17,18,17,29],[18,18,18,29],[19,18,19,29],[20,18,20,29],[21,18,21,29],[22,18,22,29],[6,19,6,22],[8,19,8,22],[6,24,6,29],[69,27,69,29],[69,23,69,25],[69,19,69,21],[65,18,65,29],[23,18,23,29],[24,18,24,29],[25,18,25,29],[45,18,45,29],[46,18,46,29],[8,24,8,27],[47,18,47,29],[48,18,48,29],[43,19,43,29],[44,18,44,29],[65,3,65,6],[65,8,65,11],[65,13,65,16],[69,13,69,17],[69,6,69,11],[69,1,69,3],[26,18,26,29],[27,18,27,29],[36,18,36,29],[32,18,32,29],[33,18,33,29],[34,18,34,29],[35,18,35,29],[28,18,28,29],[29,18,29,29],[30,18,30,29],[31,18,31,29],[61,18,61,29],[62,18,62,29],[63,18,63,29],[64,18,64,29],[44,5,44,6],[44,10,44,11],[44,15,44,16],[34,30,34,41],[35,30,35,41],[36,30,36,41],[14,31,14,41],[15,30,15,41],[16,30,16,41],[17,30,17,41],[18,30,18,41],[19,30,19,41],[20,30,20,41],[21,30,21,41],[34,42,34,53],[35,42,35,53],[36,42,36,53],[60,18,60,29],[49,18,49,29],[50,18,50,29],[51,18,51,29],[52,18,52,29],[53,18,53,29],[54,18,54,29],[48,30,48,41],[55,18,55,29],[56,18,56,29],[57,18,57,29],[58,18,58,29],[59,18,59,29],[54,30,54,41],[55,30,55,41],[49,30,49,41],[50,30,50,41],[43,31,43,41],[44,30,44,41],[45,30,45,41],[46,30,46,41],[62,42,62,53],[63,42,63,53],[64,42,64,53],[65,42,65,53],[47,30,47,41],[62,30,62,41],[56,30,56,41],[57,30,57,41],[58,30,58,41],[51,30,51,41],[52,30,52,41],[53,30,53,41],[60,42,60,53],[50,42,50,53],[2,56,3,57],[51,42,51,53],[52,42,52,53],[53,42,53,53],[43,43,43,53],[44,42,44,53],[63,30,63,41],[64,30,64,41],[65,30,65,41],[48,42,48,53],[49,42,49,53],[59,30,59,41],[60,30,60,41],[61,30,61,41],[45,42,45,53],[46,42,46,53],[61,42,61,53],[54,42,54,53],[55,42,55,53],[56,42,56,53],[57,42,57,53],[47,42,47,53],[58,42,58,53],[59,42,59,53]]}
["FILTER PROFILE REPORT FOR INDIVIDUAL FILTERS",null,null,null,null,null,null,null,null,null,null,null,null,null,null,null,null,null,"FILTER PROFILE REPORT FOR INDIVIDUAL FILTERS",null,null,null,null,null,null,null,null,null,null,null,"FILTER PROFILE REPORT FOR INDIVIDUAL FILTERS",null,null,null,null,null,null,null,null,null,null,null,"FILTER PROFILE REPORT FOR INDIVIDUAL FILTERS"]
["FOR PUBLIC WATER SYSTEMS THAT ARE USING SURFACE WATER SOURCES OR GROUND WATER SOURCES UNDER",null,null,null,null,null,null,null,null,null,null,null,null,null,null,null,null,null,"FOR PUBLIC WATER SYSTEMS THAT ARE USING SURFACE WATER SOURCES OR GROUND WATER SOURCES UNDER",null,null,null,null,null,null,null,null,null,null,null,"FOR PUBLIC WATER SYSTEMS THAT ARE USING SURFACE WATER SOURCES OR GROUND WATER SOURCES UNDER",null,null,null,null,null,null,null,null,null,null,null,"FOR PUBLIC WATER SYSTEMS THAT ARE USING SURFACE WATER SOURCES OR GROUND WATER SOURCES UNDER"]
["THE INFLUENCE OF SURFACE WATER THAT ARE REQUIRED TO CONDUCT ADDITIONAL INDIVIDUAL FILTER MONITORING",null,null,null,null,null,null,null,null,null,null,null,null,null,null,null,null,null,"THE INFLUENCE OF SURFACE WATER THAT ARE REQUIRED TO CONDUCT ADDITIONAL INDIVIDUAL FILTER MONITORING",null,null,null,null,null,null,null,null,null,null,null,"THE INFLUENCE OF SURFACE WATER THAT ARE REQUIRED TO CONDUCT ADDITIONAL INDIVIDUAL FILTER MONITORING",null,null,null,null,null,null,null,null,null,null,null,"THE INFLUENCE OF SURFACE WATER THAT ARE REQUIRED TO CONDUCT ADDITIONAL INDIVIDUAL FILTER MONITORING",null,null,null,null,null,null,null,null,null,null,null,null,null,"FIRST YEAR IN \nDROP-DOWN LIST",null,2022,{"$f":"+BG3+1","v":2023},{"$f":"+BH3+1","v":2024},2025,2026,2027,2028,2029,2030,2031]
[]
[]
["PUBLIC WATER",null,null,null,null,null,"         PLANT NAME",null,null,null,null,null,null,null,null,null,null,null,"PUBLIC WATER",null,null,null,null,"         PLANT NAME",null,null,null,null,null,null,"PUBLIC WATER",null,null,null,null,"         PLANT NAME",null,null,null,null,null,null,"PUBLIC WATER",null,null,null,null,"         PLANT NAME"]
["SYSTEM NAME:",null,null,null,null,null,"         OR NUMBER:",null,null,null,null,null,null,null,null,null,null,null,"SYSTEM NAME:",{"$f":"IF(ISBLANK($B$7),\"\",$B$7)","v":""},null,null,null,"         OR NUMBER:",{"$f":"IF(ISBLANK($J$7),\"\",$J$7)","v":""},null,null,null,null,null,"SYSTEM NAME:",{"$f":"IF(ISBLANK($B$7),\"\",$B$7)","v":""},null,null,null,"         OR NUMBER:",{"$f":"IF(ISBLANK($J$7),\"\",$J$7)","v":""},null,null,null,null,null,"SYSTEM NAME:",{"$f":"IF(ISBLANK($B$7),\"\",$B$7)","v":""},null,null,null,"         OR NUMBER:",{"$f":"IF(ISBLANK($J$7),\"\",$J$7)","v":""}]
[null,null,null,null,null,null,null,null,null,null,null,null,null,null,null,null,null,null,null,null,null,null,null,null,null,null,null,null,null,null,null,null,null,null,null,null,null,null,null,null,null,null,null,null,null,null,null,null,null,null,null,null,null,null,null,null,"MONTH",null,{"$f":"IF(ISBLANK(J9),\"missing\",IF(AND(ISNUMBER(J9),J9>=1,J9<=12),ROUND(J9,0),IF(OR(J9=\"jan\",J9=\"feb\",J9=\"mar\",J9=\"apr\",J9=\"may\",J9=\"jun\",J9=\"jul\",J9=\"aug\",J9=\"sep\",J9=\"sept\",J9=\"oct\",J9=\"nov\",J9=\"dec\",J9=\"january\",J9=\"february\",J9=\"march\",J9=\"april\",J9=\"may\",J9=\"june\",J9=\"july\",J9=\"august\",J9=\"september\",J9=\"october\",J9=\"november\",J9=\"december\"),MONTH(J9&\"1\"),\"!error\")))","v":"missing"}]
["PWS ID No.:",null,null,null,null,null,"         Month:",null,null,null,null,null,null,null," Year:",null,null,null,"PWS ID No.:",{"$f":"IF(ISBLANK($B$9),\"\",IF(ISNUMBER(VALUE($B$9)),IF(AND(LEN($B$9)=7,NOT(ISNUMBER(SEARCH(\".\",$B$9))),VALUE($B$9)>=10001,VALUE($B$9)<=2549999,MOD($B$9,1)=0,RIGHT($B$9,4)<>\"0000\"),$B$9,-99),-99))","v":""},null,null,null,"         Month:",{"$f":"IF($BG$8=\"missing\",\"\",IF(ISNUMBER($BG$8),IF(ISTEXT($J$9),$J$9,$BG$8),-99))","v":""},null,null,null," Year:",{"$f":"IF($BG$9=\"missing\",\"\",IF(ISNUMBER($BG$9),$BG$9,-99))","v":""},"PWS ID No.:",{"$f":"IF(ISBLANK($B$9),\"\",IF(ISNUMBER(VALUE($B$9)),IF(AND(LEN($B$9)=7,NOT(ISNUMBER(SEARCH(\".\",$B$9))),VALUE($B$9)>=10001,VALUE($B$9)<=2549999,MOD($B$9,1)=0,RIGHT($B$9,4)<>\"0000\"),$B$9,-99),-99))","v":""},null,null,null,"         Month:",{"$f":"IF($BG$8=\"missing\",\"\",IF(ISNUMBER($BG$8),IF(ISTEXT($J$9),$J$9,$BG$8),-99))","v":""},null,null,null," Year:",{"$f":"IF($BG$9=\"missing\",\"\",IF(ISNUMBER($BG$9),$BG$9,-99))","v":""},"PWS ID No.:",{"$f":"IF(ISBLANK($B$9),\"\",IF(ISNUMBER(VALUE($B$9)),IF(AND(LEN($B$9)=7,NOT(ISNUMBER(SEARCH(\".\",$B$9))),VALUE($B$9)>=10001,VALUE($B$9)<=2549999,MOD($B$9,1)=0,RIGHT($B$9,4)<>\"0000\"),$B$9,-99),-99))","v":""},null,null,null,"         Month:",{"$f":"IF($BG$8=\"missing\",\"\",IF(ISNUMBER($BG$8),IF(ISTEXT($J$9),$J$9,$BG$8),-99))","v":""},null,null,null," Year:",{"$f":"IF($BG$9=\"missing\",\"\",IF(ISNUMBER($BG$9),$BG$9,-99))","v":""},null,null,"YEAR",null,{"$f":"IF(ISBLANK(P9),\"missing\",IF(OR(AND(ISNUMBER(P9),P9>=0,P9<99.5),AND(ISNUMBER(P9),P9>=1999.5,P9<=9999)),ROUND(P9,0),\"!error\"))","v":"missing"}]
[]
[null,null,"OBVIOUS REASONS",null,null,null,null,null,null,null,null,null,null,null,null,null,null,null,null,null,null,"NARRATIVE DESCRIPTION OF FILTER PROFILE",null,null,null,null,null,null,null,null,null,null,null,"NARRATIVE DESCRIPTION OF FILTER PROFILE",null,null,null,null,null,null,null,null,null,null,null,"NARRATIVE DESCRIPTION OF FILTER PROFILE"]
[null,null,null,"FILTER NO.:",null,null,null,null,"FILTER NO.:",null,null,null,null,"FILTER NO.:",null,null,null,null,"FILTER NO.:",null,null,null,null,null,null,null,null,null,null,null,"FILTER NO.:",null,null,null,null,null,null,null,null,null,null,null,"FILTER NO.:"]
[null,null,null,"DATE:",null,null,null,null,"DATE:",null,null,null,null,"DATE:",null,null,null,null,"PROFILE NO.:",null,null,null,"DATE OF PROFILE:    ",null,null,null,null,null,null,null,"PROFILE NO.:",null,null,null,"DATE OF PROFILE:    ",null,null,null,null,null,null,null,"PROFILE NO.:",null,null,null,"DATE OF PROFILE:    "]
[null,null,null,"TIME:",null,null,null,null,"TIME:",null,null,null,null,"TIME:"]
[null,null,null,"DURATION:",null,null,null,null,"DURATION:",null,null,null,null,"DURATION:",null,null,null,null,"DETAILS:",null,null,null,null,null,null,null,null,null,null,null,"DETAILS:",null,null,null,null,null,null,null,null,null,null,null,"DETAILS:"]
[null,null,null,"TURBIDITY:",null,null,null,null,"TURBIDITY:",null,null,null,null,"TURBIDITY:"]
["OBVIOUS REASONS (Check all that apply)"]
["NONE IDENTIFIED - A Filter Profile must be submitted",null,null,"       (See Profile No.",null,null,null,")","       (See Profile No.",null,null,null,")","       (See Profile No.",null,null,null,")"]
["Filter Problems"]
["Post-Backwash Turbidity Spike"]
["Prolonged Filter Run Time"]
["Excessive Filter-Loading Rate"]
["Rate-of-Flow Control Valve Failure"]
["Media Defects (insufficient depth, mudballs, etc.)"]
["Inadequate Surface Wash or Backwash Facilities"]
["Backwash Artifact"]
["Turbidimeter Errors"]
["Incorrect Calibration"]
["Air Bubble"]
["Debris"]
["Chemical Feed Equipment Failure"]
["Coagulant"]
["Coagulant Aid"]
["Filter Aid"]
["Poor Raw Water Quality"]
["Other Major Unit Process Failures/Maintenance Activities"]
["Specify:"]
[]
[]
[null,null,"OBVIOUS REASONS",null,null,null,null,null,null,null,null,null,null,null,null,null,null,null,null,null,null,"NARRATIVE DESCRIPTION OF FILTER PROFILE",null,null,null,null,null,null,null,null,null,null,null,"NARRATIVE DESCRIPTION OF FILTER PROFILE",null,null,null,null,null,null,null,null,null,null,null,"NARRATIVE DESCRIPTION OF FILTER PROFILE"]
[null,null,null,"FILTER NO.:",null,null,null,null,"FILTER NO.:",null,null,null,null,"FILTER NO.:",null,null,null,null,"FILTER NO.:",null,null,null,null,null,null,null,null,null,null,null,"FILTER NO.:",null,null,null,null,null,null,null,null,null,null,null,"FILTER NO.:"]
[null,null,null,"DATE:",null,null,null,null,"DATE:",null,null,null,null,"DATE:",null,null,null,null,"PROFILE NO.:",null,null,null,"DATE OF PROFILE:    ",null,null,null,null,null,null,null,"PROFILE NO.:",null,null,null,"DATE OF PROFILE:    ",null,null,null,null,null,null,null,"PROFILE NO.:",null,null,null,"DATE OF PROFILE:    "]
[null,null,null,"TIME:",null,null,null,null,"TIME:",null,null,null,null,"TIME:"]
[null,null,null,"DURATION:",null,null,null,null,"DURATION:",null,null,null,null,"DURATION:",null,null,null,null,"DETAILS:",null,null,null,null,null,null,null,null,null,null,null,"DETAILS:",null,null,null,null,null,null,null,null,null,null,null,"DETAILS:"]
[null,null,null,"TURBIDITY:",null,null,null,null,"TURBIDITY:",null,null,null,null,"TURBIDITY:"]
["OBVIOUS REASONS (Check all that apply)"]
["NONE IDENTIFIED - A Filter Profile must be submitted",null,null,"       (See Profile No.",null,null,null,")","       (See Profile No.",null,null,null,")","       (See Profile No.",null,null,null,")"]
["Filter Problems"]
["Post-Backwash Turbidity Spike"]
["Prolonged Filter Run Time"]
["Excessive Filter-Loading Rate"]
["Rate-of-Flow Control Valve Failure"]
["Media Defects (insufficient depth, mudballs, etc.)"]
["Inadequate Surface Wash or Backwash Facilities"]
["Backwash Artifact"]
["Turbidimeter Errors"]
["Incorrect Calibration"]
["Air Bubble"]
["Debris"]
["Chemical Feed Equipment Failure"]
["Coagulant"]
["Coagulant Aid"]
["Filter Aid"]
["Poor Raw Water Quality"]
["Other Major Unit Process Failures/Maintenance Activities"]
["Specify:"]
[]
[]
[null,null,null,null," Certificate No.",null,null,null,null,null,null,null,null,null,null,null,null,null,null,null,null,null," Certificate No.",null,null,null,null,null,null,null,null,null,null,null," Certificate No.",null,null,null,null,null,null,null,null,null,null,null," Certificate No."]
["SUBMITTED BY:",null,null,null," and Grade:",null,null,null,null,null,null,null," Date:",null,null,null,null,null,"SUBMITTED BY:",null,null,null," and Grade:",{"$f":"IF(ISBLANK($G$70),\"\",$G$70)","v":""},null,null," Date:",{"$f":"IF(ISBLANK($N$70),\"\",$N$70)","v":""},null,null,"SUBMITTED BY:",null,null,null," and Grade:",{"$f":"IF(ISBLANK($G$70),\"\",$G$70)","v":""},null,null," Date:",{"$f":"IF(ISBLANK($N$70),\"\",$N$70)","v":""},null,null,"SUBMITTED BY:",null,null,null," and Grade:",{"$f":"IF(ISBLANK($G$70),\"\",$G$70)","v":""},null,null," Date:",{"$f":"IF(ISBLANK($N$70),\"\",$N$70)","v":""}]
[]
["TCEQ - 10276 (12-16-13)",null,null,null,"          PAGE 1",null,null,null,null,null,null,null,null,null,null,null,null,"FPR",{"$f":"A72","v":"TCEQ - 10276 (12-16-13)"},null,null,null,"          PAGE 2",null,null,null,null,null,null,"FPR",{"$f":"A72","v":"TCEQ - 10276 (12-16-13)"},null,null,null,"          PAGE 2",null,null,null,null,null,null,"FPR",{"$f":"A72","v":"TCEQ - 10276 (12-16-13)"},null,null,null,"          PAGE 2",null,null,null,null,null,null,"FPR"]